bitfinex-derivatives/quotes_ETHF0:USTF0_20250903
["timestamp","ask_amount","ask_price","bid_price","bid_amount"]
[1756917680458,0.9117,4458.9,4458.8,0.8405]
[1756917680862,0.4836,4458.8,4458.6,0.5163]
[1756917681066,0.6827,4458.6,4458.5,1.3706]
[1756917681464,0.3341,4458.6,4458.5,1.3706]
[1756917682062,3.2078,4458.8,4458.6,0.5163]
[1756917682259,3.5419,4458.8,4458.7,1.1648]
[1756917682963,3.8905,4458.8,4458.7,1.1648]
[1756917683166,4.4906051,4458.8,4458.7,1.1648]
[1756917684765,4.7196051,4458.8,4458.7,1.1648]
[1756917685267,5.2032051,4458.8,4458.7,1.1648]
[1756917686360,5.2032051,4458.8,4458.7,0.8405]
[1756917687471,4.7196051,4458.8,4458.7,1.1648]
[1756917687966,4.4906051,4458.8,4458.7,1.1648]
[1756917688267,4.7196051,4458.8,4458.7,1.1648]
[1756917689165,0.8291051,4458.8,4458.7,1.1648]
[1756917689367,0.229,4458.8,4458.7,1.1648]
[1756917689758,33.4891108,4459.8,4458.8,0.5163]
[1756917689963,0.9117,4459.8,4459.7,1.1648]
[1756917690158,2.75571302,4459.8,4459.3,3.2078]
[1756917690363,2.41103455,4459.4,4459.3,0.8405]
[1756917690577,3.23905727,4459.4,4459.3,0.5163]
[1756917690761,1.28172272,4459.4,4459.3,1.1648]
[1756917690967,0.5631,4459.4,4459.3,1.1648]
[1756917691667,3.2078,4459.8,4459.5,0.2058]
[1756917691668,0.229,4459.7,4459.5,0.2058]
[1756917691866,0.229,4459.7,4459.6,1.1648]
[1756917692065,3.4368,4459.8,4459.7,1.1648]
[1756917692263,3.7709,4459.8,4459.7,1.1648]
[1756917692864,4.1195,4459.8,4459.7,1.1648]
[1756917693266,3.4368,4459.8,4459.7,1.1648]
[1756917693669,3.2078,4459.8,4459.7,1.1648]
[1756917693869,3.4368,4459.8,4459.7,1.1648]
[1756917694072,0.3341,4460.6,4460.5,0.2058]
[1756917694273,1.16564438,4460.6,4460.5,1.3706]
[1756917694874,0.93664438,4460.6,4460.5,1.3706]
[1756917695074,0.5631,4460.6,4460.5,1.3706]
[1756917695272,0.229,4460.6,4460.5,1.3706]
[1756917695465,3.8905,4461.1,4461.0,1.3706]
[1756917695975,3.7709,4461.1,4461.0,1.3706]
[1756917696175,3.2078,4461.1,4461.0,1.3706]
[1756917696379,1.1663,4461.8,4461.7,0.8405]
[1756917696573,0.87197595,4461.8,4461.7,0.8405]
[1756917696779,0.87197595,4461.8,4461.7,1.1648]
[1756917696979,0.18927595,4461.8,4461.7,1.1648]
[1756917697879,0.52337595,4461.8,4461.7,1.1648]
[1756917698076,0.87197595,4461.8,4461.5,0.7221]
[1756917698277,0.18927595,4461.7,4461.5,0.5163]
[1756917698478,1.58457595,4461.6,4461.5,0.5163]
[1756917699879,0.87197595,4461.6,4461.5,1.3706]
[1756917700075,0.41827595,4461.6,4461.5,1.3706]
[1756917700675,1.58457595,4461.6,4461.5,1.0463]
[1756917700880,1.58457595,4461.6,4461.5,0.8405]
[1756917701584,0.6827,4461.2,4461.1,3.8563]
[1756917701984,0.3341,4461.2,4461.1,4.3711]
[1756917702678,0.9077,4461.6,4461.5,1.0785]
[1756917702880,1.09643255,4461.6,4461.5,1.4164]
[1756917703286,0.9077,4461.6,4461.5,1.4164]
[1756917704188,1.3734,4461.6,4461.5,1.4164]
[1756917704377,0.9077,4461.6,4461.5,1.4164]
[1756917704780,1.3734,4461.6,4461.5,1.0785]
[1756917704982,1.3734,4461.6,4461.5,0.5148]
[1756917705188,0.4657,4461.5,4461.1,0.5148]
[1756917705384,1.1444,4461.2,4461.1,1.2064]
[1756917705693,1.3734,4461.2,4461.1,1.2064]
[1756917705885,0.4657,4461.7,4461.1,1.2064]
[1756917706096,0.7482604,4461.6,4461.5,0.9016]
[1756917706286,0.5192604,4461.6,4461.5,0.9016]
[1756917706492,0.3308,4462.1,4462.0,0.9016]
[1756917706784,1.56185621,4462.1,4462.0,1.4164]
[1756917707179,1.33285621,4462.1,4462.0,1.4164]
[1756917707379,1.09615621,4462.1,4462.0,1.4164]
[1756917707986,1.09615621,4462.1,4461.5,0.21]
[1756917708187,0.3308,4461.6,4461.5,0.9016]
[1756917708696,0.3308,4461.6,4461.5,1.4164]
[1756917709200,0.6787,4461.6,4461.5,1.4164]
[1756917710897,3.4368,4461.7,4461.6,0.5148]
[1756917711494,0.229,4461.7,4461.6,1.2064]
[1756917711687,3.2078,4462.3,4461.6,0.6916]
[1756917711886,0.18848121,4462.2,4462.1,1.2064]
[1756917712092,3.2078,4462.8,4462.7,0.6916]
[1756917712337,4.03683643,4462.8,4462.7,1.2064]
[1756917712498,4.36763643,4462.8,4462.7,1.2064]
[1756917712897,0.5598,4462.8,4462.7,1.2064]
[1756917713496,1.34828056,4462.8,4462.7,1.2064]
[1756917714799,0.78848056,4462.8,4462.7,4.83110173]
[1756917714991,0.229,4463.2,4462.7,4.71954173]
[1756917715196,0.229,4463.2,4463.1,1.2064]
[1756917715404,1.68547539,4463.2,4462.5,0.21]
[1756917715603,0.3308,4462.6,4462.5,0.9016]
[1756917715799,0.229,4462.6,4462.5,0.9016]
[1756917716100,0.5998615,4462.9,4462.6,0.5148]
[1756917716303,0.6787,4462.9,4462.8,1.2064]
[1756917716502,1.68565498,4462.9,4462.8,1.2064]
[1756917716702,2.15135498,4462.9,4462.8,1.2064]
[1756917716902,2.15135498,4462.9,4462.8,0.8685]
[1756917717692,1.68565498,4462.9,4462.8,1.2064]
[1756917718096,2.15135498,4462.9,4462.8,1.2064]
[1756917718302,2.15135498,4462.9,4462.8,0.8685]
[1756917718901,2.15135498,4462.9,4462.8,1.2064]
[1756917718902,1.68565498,4462.9,4462.8,1.2064]
[1756917720207,2.15135498,4462.9,4462.8,0.8685]
[1756917720905,0.6787,4462.2,4462.1,1.2064]
[1756917721206,1.45713035,4462.2,4462.1,1.2064]
[1756917721402,0.77843035,4462.2,4462.1,1.2064]
[1756917721806,0.4657,4463.3,4462.1,1.2064]
[1756917721807,3.2078,4463.4,4462.8,0.5148]
[1756917722110,0.3308,4463.7,4463.6,1.2064]
[1756917722304,0.9077,4463.7,4463.6,0.8685]
[1756917722502,0.9077,4463.7,4463.6,0.5148]
[1756917722503,4.5812,4463.7,4463.6,0.5148]
[1756917723008,4.1155,4463.7,4463.6,1.2064]
[1756917724602,4.5812,4463.7,4463.1,0.5148]
[1756917724797,1.19036007,4463.6,4463.0,0.21]
[1756917724998,1.86906007,4463.6,4463.5,0.3537]
[1756917725300,2.33476007,4463.6,4463.5,0.8685]
[1756917725497,2.33476007,4463.6,4463.5,0.5148]
[1756917725906,2.33476007,4463.6,4463.5,0.8685]
[1756917726103,0.1362,4463.5,4462.9,0.5148]
[1756917726404,0.4657,4462.9,4462.6,0.5148]
[1756917726604,1.1444,4462.7,4462.1,0.5148]
[1756917727013,0.3308,4462.2,4462.1,1.2064]
[1756917727302,0.3308,4462.2,4461.5,3.4178]
[1756917727303,1.1444,4462.2,4461.6,0.5148]
[1756917728204,1.1444,4462.2,4462.1,0.8685]
[1756917728404,0.6787,4462.2,4462.1,0.8685]
[1756917728934,0.6787,4462.2,4462.1,1.2064]
[1756917730105,1.1444,4462.2,4462.1,0.5148]
[1756917730301,1.1444,4462.2,4462.1,0.8685]
[1756917731807,1.1313,4462.2,4461.5,0.21]
[1756917732001,0.3287,4461.6,4461.5,0.8497]
[1756917732209,3.2078,4462.0,4461.5,0.8497]
[1756917732407,3.2078,4462.0,4461.5,1.07383]
[1756917732618,3.2078,4462.0,4461.9,1.149]
[1756917733910,3.80497315,4462.0,4461.9,1.149]
[1756917734119,3.2078,4462.6,4462.5,1.3579]
[1756917734414,1.1116,4462.1,4462.0,1.0415]
[1756917734612,1.93789046,4462.1,4462.0,0.8326]
[1756917734815,0.59729046,4462.1,4462.0,5.3579]
[1756917735115,0.229,4463.2,4463.1,1.149]
[1756917737015,3.4368,4463.3,4463.2,1.149]
[1756917737816,3.5365,4463.8,4463.7,1.149]
[1756917738005,3.7655,4463.8,4463.7,1.149]
[1756917738225,3.5365,4463.8,4463.7,1.149]
[1756917738409,3.7655,4463.8,4463.7,1.149]
[1756917738613,3.7655,4463.8,4463.0,0.2089]
[1756917738614,0.3287,4463.2,4463.1,1.149]
[1756917738811,0.5577,4463.2,4463.1,1.149]
[1756917739916,1.3406,4463.2,4463.1,0.5093]
[1756917740216,0.6596,4462.2,4462.1,4.0404]
[1756917740414,0.229,4462.3,4462.1,4.3568]
[1756917740617,0.5577,4462.4,4462.3,1.149]
[1756917740817,0.8886,4462.4,4462.3,1.149]
[1756917742013,1.3406,4462.4,4462.0,0.2089]
[1756917742214,0.6596,4462.2,4461.6,0.5093]
[1756917742419,0.3287,4461.7,4461.6,1.149]
[1756917742619,0.5577,4462.1,4462.0,1.3579]
[1756917743221,0.3287,4462.6,4462.5,0.8486]
[1756917743519,0.5577,4462.6,4462.5,1.3579]
[1756917743716,0.8886,4462.6,4462.5,1.3579]
[1756917744018,1.3406,4462.6,4462.5,0.8326]
[1756917745222,1.3406,4462.6,4462.0,0.2089]
[1756917745419,1.3406,4462.6,4462.1,0.5093]
[1756917745641,1.3406,4462.6,4461.5,3.4167]
[1756917745642,4.3194,4462.2,4461.6,0.5093]
[1756917745925,0.8886,4462.1,4462.0,1.3579]
[1756917746116,0.5577,4462.1,4462.0,1.3579]
[1756917746526,3.8674,4462.7,4462.6,0.3233]
[1756917746723,4.5484,4462.7,4462.6,0.5093]
[1756917746924,5.14452814,4462.7,4462.0,0.2089]
[1756917747126,0.3287,4462.2,4462.1,1.149]
[1756917747320,1.15382814,4462.2,4462.1,1.149]
[1756917747916,1.48472814,4462.2,4462.1,1.149]
[1756917748116,1.93672814,4462.2,4462.1,0.5093]
[1756917748328,5.14452814,4462.2,4462.1,0.5093]
[1756917748735,5.14452814,4462.2,4462.1,1.149]
[1756917748736,4.36162814,4462.2,4462.1,1.149]
[1756917748928,0.82512814,4462.2,4462.1,1.149]
[1756917750932,1.15382814,4462.2,4462.1,1.149]
[1756917751835,0.59612814,4462.2,4462.1,1.149]
[1756917752832,0.92482814,4462.2,4462.1,1.149]
[1756917753033,0.59612814,4462.2,4462.1,1.149]
[1756917753634,0.59461717,4462.2,4462.1,1.149]
[1756917754130,0.92331717,4462.2,4462.1,1.149]
[1756917754932,1.25421717,4462.2,4462.1,1.149]
[1756917755234,0.92331717,4462.2,4462.1,1.149]
[1756917755641,0.59461717,4462.2,4462.1,1.149]
[1756917755942,0.92331717,4462.2,4462.1,1.149]
[1756917756541,1.25421717,4462.2,4462.1,1.149]
[1756917756739,1.70621717,4462.2,4462.1,0.8326]
[1756917756934,1.70621717,4462.2,4462.1,0.5093]
[1756917757139,1.70621717,4462.2,4461.6,0.5093]
[1756917757439,0.6596,4461.7,4461.6,1.149]
[1756917758035,3.8674,4462.4,4462.3,1.149]
[1756917758236,4.69119522,4462.4,4462.3,1.149]
[1756917758439,3.80259522,4462.4,4462.3,1.149]
[1756917760146,0.59479522,4462.4,4462.3,1.149]
[1756917761242,0.59475691,4462.4,4462.3,1.149]
[1756917761444,0.59475691,4462.4,4462.3,2.18463114]
[1756917761646,0.59475691,4462.4,4462.3,1.149]
[1756917761848,0.59475691,4462.4,4462.3,2.18463114]
[1756917762141,0.229,4462.8,4462.5,0.1902]
[1756917762352,3.2078,4462.9,4462.8,0.4956]
[1756917762647,3.2078,4462.9,4462.8,1.1425]
[1756917765553,3.8922,4462.9,4462.8,0.825]
[1756917765742,4.3319,4462.9,4462.8,0.825]
[1756917766940,3.2078,4462.9,4462.8,1.1425]
[1756917767140,3.5513,4462.9,4462.8,1.1425]
[1756917767652,3.5513,4462.9,4462.7,0.3294]
[1756917767653,0.4397,4462.8,4462.7,0.3294]
[1756917767847,3.2078,4462.9,4462.8,0.4956]
[1756917768049,4.3319,4462.9,4462.8,0.825]
[1756917768352,4.92656547,4462.9,4462.8,0.825]
[1756917768549,4.92657701,4462.9,4462.8,0.825]
[1756917768750,0.6844,4462.6,4462.5,0.6858]
[1756917768951,0.6844,4462.6,4462.5,1.0152]
[1756917769265,1.1241,4462.6,4462.5,1.0152]
[1756917769447,1.1241,4462.6,4462.5,0.825]
[1756917769651,1.1241,4462.6,4462.5,0.4956]
[1756917770040,1.1241,4462.6,4462.5,0.825]
[1756917771152,1.1241,4462.6,4462.5,1.0152]
[1756917771651,0.6844,4462.6,4462.5,1.3327]
[1756917772152,0.229,4462.8,4462.5,0.8371]
[1756917772357,0.9134,4462.8,4462.7,1.1425]
[1756917772852,1.94791293,4462.8,4462.7,0.4956]
[1756917773043,1.1241,4462.7,4462.6,0.4956]
[1756917773249,1.1241,4462.7,4462.6,0.825]
[1756917773644,0.6844,4462.7,4462.6,1.1425]
[1756917773849,3.2078,4462.9,4462.6,0.6469]
[1756917774049,3.4368,4462.9,4462.8,0.6469]
[1756917774248,4.71599212,4462.9,4462.8,1.1425]
[1756917775472,5.15569212,4462.9,4462.8,0.825]
[1756917775852,5.15569212,4462.9,4462.8,0.4956]
[1756917776247,4.03159212,4462.9,4462.5,0.1902]
[1756917776452,0.59479212,4462.8,4462.5,0.8371]
[1756917776640,0.82379212,4462.8,4462.5,0.8371]
[1756917776845,3.2078,4462.9,4462.6,0.4956]
[1756917777045,1.16745165,4462.8,4462.7,1.1425]
[1756917777254,0.3435,4462.8,4462.7,1.1425]
[1756917777645,3.6475,4463.4,4462.7,1.1425]
[1756917777848,3.6475,4463.4,4462.5,0.1902]
[1756917777849,0.3435,4463.1,4463.0,0.5077]
[1756917778049,0.9134,4463.1,4463.0,0.8371]
[1756917778254,1.50840434,4463.1,4463.0,0.8371]
[1756917778446,1.50840434,4463.1,4463.0,1.3327]
[1756917779557,1.27940434,4463.1,4463.0,1.3327]
[1756917779853,1.50840434,4463.1,4463.0,1.3327]
[1756917780654,1.27940434,4463.1,4463.0,1.3327]
[1756917780855,1.50840434,4463.1,4463.0,1.3327]
[1756917781054,0.9134,4463.1,4463.0,1.3327]
[1756917781256,1.50869256,4463.1,4463.0,1.3327]
[1756917782054,0.59529256,4463.1,4463.0,1.3327]
[1756917782378,0.3435,4463.6,4463.5,1.3327]
[1756917782562,0.59127132,4464.0,4463.5,4.0449]
[1756917782754,3.2078,4464.1,4464.0,1.3327]
[1756917782957,3.79912876,4464.1,4464.0,1.3327]
[1756917783154,0.6844,4464.2,4464.1,0.8131]
[1756917783362,1.1241,4464.2,4464.1,0.4956]
[1756917783557,1.1241,4464.2,4464.1,0.825]
[1756917783758,0.229,4464.4,4464.1,0.6469]
[1756917783953,0.5725,4464.4,4464.3,0.6469]
[1756917784156,0.3435,4464.4,4464.3,1.1425]
[1756917784560,3.4368,4464.6,4464.5,0.1902]
[1756917784860,4.37085386,4464.6,4464.5,1.3327]
[1756917785060,4.37085386,4464.6,4464.5,0.4956]
[1756917785061,5.15145386,4464.6,4464.5,0.4956]
[1756917785258,0.4397,4464.5,4464.1,0.4956]
[1756917785566,0.6844,4464.2,4464.1,1.1425]
[1756917785968,0.3435,4464.2,4464.1,1.1425]
[1756917786158,0.6844,4464.2,4464.1,1.1425]
[1756917786358,0.3435,4464.2,4464.1,1.1425]
[1756917786557,0.229,4464.4,4464.2,0.4956]
[1756917786762,3.2078,4464.6,4464.5,1.0152]
[1756917786763,3.8922,4464.6,4464.5,1.0152]
[1756917786960,4.1212,4464.6,4464.5,1.0152]
[1756917787268,4.1212,4464.6,4464.5,1.3327]
[1756917787972,4.5609,4464.6,4464.5,0.4956]
[1756917788162,4.3319,4464.6,4464.5,0.4956]
[1756917788358,4.5609,4464.6,4464.5,1.0152]
[1756917788963,4.5609,4464.6,4464.5,1.3327]
[1756917788964,3.8922,4464.6,4464.5,1.3327]
[1756917789974,3.5513,4464.6,4464.5,1.3327]
[1756917790170,0.3435,4464.6,4464.5,1.3327]
[1756917790570,0.4397,4465.0,4464.5,0.8371]
[1756917790769,0.6844,4464.7,4464.6,1.1425]
[1756917793361,0.229,4464.9,4464.7,0.4695]
[1756917793567,0.3055,4464.8,4464.7,1.1472]
[1756917794373,1.0507,4464.8,4464.7,0.808]
[1756917794576,1.0507,4464.3,4464.2,0.808]
[1756917794772,0.3055,4464.3,4464.2,1.1472]
[1756917795275,4.2585,4465.1,4465.0,0.5248]
[1756917795462,4.65513898,4465.1,4465.0,1.3335]
[1756917795861,4.42613898,4465.1,4465.0,1.3335]
[1756917796067,5.07703898,4465.1,4465.0,0.9943]
[1756917796466,4.84803898,4465.1,4465.0,0.9943]
[1756917796664,4.42613898,4465.1,4465.0,1.3335]
[1756917796866,4.0656,4465.1,4465.0,1.3335]
[1756917797779,3.8366,4465.1,4465.0,1.3335]
[1756917797980,4.0656,4465.1,4465.0,1.3335]
[1756917798183,4.4875,4465.1,4465.0,1.3335]
[1756917798683,4.2585,4465.1,4465.0,1.3335]
[1756917799178,4.4875,4465.1,4464.6,0.4695]
[1756917799388,4.0656,4465.1,4464.5,0.6558]
[1756917799581,0.6288,4464.6,4464.5,1.3335]
[1756917800985,0.6288,4464.6,4464.5,0.9943]
[1756917801283,0.6288,4464.6,4464.5,1.3335]
[1756917801787,0.509,4464.5,4463.7,0.4695]
[1756917801983,0.4219,4463.7,4463.6,3.2078]
[1756917802180,0.4219,4463.7,4463.2,0.4695]
[1756917802181,0.6288,4463.3,4463.2,1.1472]
[1756917803276,1.0507,4463.3,4463.2,0.808]
[1756917803680,1.0507,4463.3,4463.2,0.4695]
[1756917803983,0.4219,4463.2,4463.0,3.2078]
[1756917804185,1.0507,4463.1,4462.6,0.4695]
[1756917804387,1.0507,4462.7,4462.6,0.808]
[1756917805284,0.6288,4462.7,4462.6,0.808]
[1756917805487,0.6288,4462.7,4462.6,1.1472]
[1756917806187,0.3055,4462.7,4462.6,1.1472]
[1756917806682,0.229,4463.0,4462.7,0.4695]
[1756917806885,0.229,4463.0,4462.9,0.6777]
[1756917807190,0.6288,4463.0,4462.9,1.1472]
[1756917807483,1.63991053,4463.0,4462.9,0.4695]
[1756917807686,1.21801053,4463.0,4462.6,0.4695]
[1756917807886,0.6288,4462.6,4462.5,0.9943]
[1756917808090,0.6288,4462.6,4462.5,1.3335]
[1756917808390,1.0507,4462.6,4462.5,0.9943]
[1756917810385,0.6288,4462.6,4462.5,1.3335]
[1756917811989,0.229,4462.8,4462.5,1.3335]
[1756917812193,0.6288,4462.7,4462.6,1.1472]
[1756917812892,0.6288,4462.3,4462.0,0.6558]
[1756917813089,0.6288,4461.6,4461.5,0.9943]
[1756917813687,0.4219,4461.5,4461.4,3.2078]
[1756917813891,1.0507,4461.5,4461.4,4.0158]
[1756917814091,0.6288,4461.5,4461.4,4.355]
[1756917814692,0.6288,4461.5,4461.4,1.1472]
[1756917815388,1.0507,4461.5,4461.4,1.1472]
[1756917817502,1.0507,4461.5,4461.4,0.808]
[1756917817998,0.6288,4461.5,4461.4,1.1472]
[1756917818700,0.3055,4461.6,4461.5,0.864]
[1756917819299,0.3055,4461.6,4461.5,1.3335]
[1756917820096,3.8366,4462.1,4462.0,0.5248]
[1756917820400,4.0656,4462.1,4462.0,0.9943]
[1756917820793,4.4875,4462.1,4462.0,0.4695]
[1756917820994,4.0656,4462.1,4461.5,0.1863]
[1756917821195,0.6288,4461.7,4461.6,0.808]
[1756917821604,1.0507,4461.7,4461.6,0.808]
[1756917823199,0.6288,4461.7,4461.6,0.808]
[1756917823403,0.6288,4461.7,4461.6,1.1357]
[1756917824310,1.0332,4461.7,4461.6,0.3312]
[1756917824504,1.0332,4461.7,4461.1,0.4772]
[1756917824802,0.8684,4461.6,4461.5,1.0018]
[1756917825007,0.8684,4461.6,4461.5,1.3295]
[1756917827502,3.2078,4462.1,4462.0,0.1934]
[1756917827706,4.0762,4462.1,4462.0,1.3295]
[1756917828509,0.4044,4462.0,4461.6,0.4772]
[1756917828711,1.0438,4461.7,4461.6,0.8084]
[1756917828905,1.2728,4461.7,4461.6,0.8084]
[1756917829310,1.2728,4461.7,4461.1,0.4772]
[1756917829514,3.2078,4461.5,4461.1,0.4772]
[1756917829709,0.6394,4461.2,4461.1,1.1361]
[1756917830110,1.0438,4461.2,4461.1,0.4772]
[1756917831402,1.63740686,4461.2,4461.1,0.4772]
[1756917831615,1.63740686,4461.2,4460.6,0.4772]
[1756917831910,1.0438,4461.2,4460.6,0.4772]
[1756917832305,0.59369601,4461.1,4460.6,0.4772]
[1756917832505,0.308,4460.7,4460.6,1.1361]
[1756917833209,3.8472,4461.5,4461.4,0.3312]
[1756917833413,5.07429413,4461.5,4461.4,0.8084]
[1756917833909,5.07429413,4461.5,4461.4,0.4772]
[1756917834306,0.59369413,4461.5,4461.4,1.1361]
[1756917834511,0.537,4461.6,4461.5,1.3295]
[1756917834709,1.2728,4461.6,4461.1,0.4772]
[1756917835012,0.6394,4461.2,4461.1,0.8084]
[1756917835207,0.8684,4461.2,4461.1,0.8084]
[1756917835421,0.8684,4461.2,4461.1,1.1361]
[1756917835912,0.229,4461.2,4461.1,2.17250621]
[1756917836706,0.537,4461.2,4461.1,2.17250621]
[1756917837407,0.229,4461.2,4461.1,2.17250621]
[1756917837607,0.308,4461.6,4461.5,0.1934]
[1756917837816,1.13142108,4461.6,4461.5,0.8523]
[1756917838214,1.13142108,4461.6,4461.5,1.3295]
[1756917838414,1.86722108,4461.6,4461.5,1.3295]
[1756917838919,1.46282108,4461.6,4461.5,1.3295]
[1756917840618,1.46352741,4461.6,4461.5,1.3295]
[1756917841218,1.86792741,4461.6,4461.5,1.3295]
[1756917841610,0.59512741,4461.6,4461.5,1.3295]
[1756917841811,3.2078,4462.0,4461.9,1.1361]
[1756917842010,0.229,4462.8,4461.9,1.03640621]
[1756917842216,0.4568,4462.7,4461.9,4.24420621]
[1756917842411,0.4568,4462.7,4462.0,0.2241]
[1756917842611,0.537,4462.9,4462.1,0.2241]
[1756917842814,0.7648,4462.8,4462.1,0.62739]
[1756917843010,0.7648,4462.8,4462.7,1.03640621]
[1756917843413,0.9938,4462.8,4462.7,1.03640621]
[1756917844215,0.9938,4462.8,4461.9,3.6111]
[1756917844216,0.8684,4462.8,4461.9,3.2078]
[1756917844522,0.4568,4462.3,4462.0,1.03640621]
[1756917844720,0.4568,4462.3,4461.4,3.2078]
[1756917844721,0.1912,4461.5,4461.4,3.2078]
[1756917845019,1.2874,4461.5,4461.4,3.2078]
[1756917845221,0.4568,4461.9,4461.4,3.2078]
[1756917845521,0.4568,4461.9,4461.8,1.03640621]
[1756917845721,0.7648,4461.9,4461.8,1.03640621]
[1756917846417,4.43540621,4462.5,4461.8,1.03640621]
[1756917846418,3.399,4462.5,4461.8,1.03640621]
[1756917846622,0.648,4462.5,4462.4,1.03640621]
[1756917846823,0.4568,4462.4,4462.2,3.2078]
[1756917847022,0.7648,4462.4,4462.3,1.03640621]
[1756917847514,0.7648,4462.4,4461.8,0.229]
[1756917848217,0.4568,4462.4,4461.8,0.229]
[1756917848619,0.4568,4462.4,4461.8,0.63232]
[1756917849218,0.308,4462.4,4462.2,3.2078]
[1756917849425,0.4568,4462.3,4462.2,3.2078]
[1756917849821,0.7648,4462.3,4462.2,3.2078]
[1756917850515,0.4568,4462.3,4462.2,3.2078]
[1756917852618,0.1912,4462.5,4462.2,3.2078]
[1756917852825,0.4504,4462.4,4462.2,3.2078]
[1756917853325,0.4504,4462.3,4462.2,3.2078]
[1756917853920,0.1912,4462.5,4462.2,3.2078]
[1756917854225,0.4504,4462.4,4462.2,3.2078]
[1756917854419,0.1912,4462.5,4462.2,3.2078]
[1756917854618,0.5212,4462.5,4462.2,3.2078]
[1756917854818,0.33,4462.4,4462.2,3.2078]
[1756917855022,0.4504,4462.3,4462.2,3.2078]
[1756917855515,0.7804,4462.3,4462.2,3.2078]
[1756917856025,1.0989,4462.3,4462.2,3.2078]
[1756917857720,0.1896,4462.0,4461.6,7.06189561]
[1756917857913,0.4504,4461.8,4461.6,7.06189561]
[1756917858116,0.4504,4461.7,4461.6,7.06189561]
[1756917858320,1.0989,4461.7,4461.6,3.2078]
[1756917860226,0.1896,4461.5,4461.0,3.4368]
[1756917860530,1.0989,4461.1,4461.0,3.2078]
[1756917861524,0.7804,4461.1,4461.0,3.2078]
[1756917862121,0.7804,4461.1,4460.4,32.69445]
[1756917862122,0.64,4461.0,4460.3,3.4368]
[1756917862328,0.4504,4460.4,4460.3,3.4368]
[1756917863227,0.4504,4460.4,4460.3,3.2078]
[1756917863421,0.4504,4460.4,4460.3,3.4368]
[1756917863422,0.7804,4460.4,4460.3,3.4368]
[1756917863822,0.7804,4460.4,4460.3,3.2078]
[1756917864125,0.4504,4459.9,4459.7,0.18254123]
[1756917864423,0.7804,4459.9,4459.8,3.4368]
[1756917864626,0.7804,4459.9,4459.8,3.2078]
[1756917865628,1.0989,4459.9,4459.8,3.2078]
[1756917865926,0.7804,4459.9,4459.8,3.2078]
[1756917867929,0.4504,4459.9,4459.8,3.2078]
[1756917869027,0.1896,4460.5,4459.8,3.2078]
[1756917869231,0.4504,4460.4,4460.3,3.2078]
[1756917869426,0.7804,4460.4,4460.3,4.24431451]
[1756917869630,0.4504,4460.4,4460.3,4.47331451]
[1756917869923,0.1896,4461.0,4460.3,4.47331451]
[1756917869924,0.4504,4460.7,4460.3,4.47331451]
[1756917870125,0.4504,4461.1,4460.6,2.07302902]
[1756917870333,0.50466349,4461.5,4461.4,0.004]
[1756917870534,1.27356349,4461.5,4461.4,0.002]
[1756917870725,1.27356349,4461.5,4461.2,0.229]
[1756917871634,1.0989,4461.4,4461.3,0.002]
[1756917872027,0.97,4461.0,4460.9,1.26951451]
[1756917872227,1.2885,4461.0,4460.9,1.26951451]
[1756917873332,1.2885,4461.0,4460.9,0.002]
[1756917873535,0.6485,4460.4,4460.2,3.4368]
[1756917873837,0.8381,4460.0,4459.9,0.002]
[1756917874030,1.2885,4460.0,4459.9,0.002]
[1756917874237,1.2885,4460.0,4459.9,1.03851451]
[1756917874428,1.2885,4460.0,4459.4,0.0012]
[1756917874429,0.1896,4459.5,4459.4,0.002]
[1756917874630,1.2885,4459.5,4459.4,0.002]
[1756917875236,0.4504,4459.4,4459.2,3.2078]
[1756917875533,0.7804,4459.3,4459.2,3.2118]
[1756917876233,1.0989,4459.3,4459.2,3.2118]
[1756917876626,1.0989,4459.3,4459.2,4.24831451]
[1756917877135,4.6485,4459.3,4458.7,3.2078]
[1756917877331,0.7804,4458.3,4458.2,4.24831451]
[1756917877531,0.7804,4458.3,4458.2,3.2118]
[1756917878327,1.0989,4458.3,4458.2,3.2118]
[1756917878539,1.0989,4458.3,4458.2,3.2078]
[1756917879236,1.0989,4458.3,4457.7,3.2078]
[1756917879439,0.4504,4457.9,4457.7,3.2078]
[1756917879738,0.7804,4457.9,4457.8,0.004]
[1756917880139,1.0989,4457.9,4457.8,0.004]
[1756917880934,1.0989,4457.9,4457.7,3.2078]
[1756917881142,0.4504,4457.8,4457.7,3.2098]
[1756917881440,1.0989,4457.8,4457.7,3.4408]
[1756917882539,0.7804,4457.8,4457.7,3.4428]
[1756917882740,0.4504,4457.8,4457.7,3.4428]
[1756917882936,0.6482,4458.0,4457.7,3.4428]
[1756917883136,0.4586,4457.9,4457.7,3.4428]
[1756917883335,0.4586,4457.9,4457.7,3.2118]
[1756917883532,0.4586,4457.9,4457.8,0.231]
[1756917884134,0.1896,4458.0,4457.8,0.231]
[1756917884932,0.1896,4458.5,4457.9,0.22432]
[1756917885244,0.1896,4458.5,4458.4,3.2078]
[1756917885443,0.6482,4458.5,4458.4,3.4388]
[1756917886036,0.1896,4459.0,4458.4,3.4388]
[1756917886242,0.4586,4458.9,4458.4,3.4388]
[1756917886438,0.4971,4459.0,4458.4,3.4388]
[1756917886740,0.4586,4458.9,4458.4,3.4388]
[1756917886945,0.1896,4459.0,4458.8,6.83902058]
[1756917887244,0.1896,4459.0,4458.9,0.231]
[1756917887839,0.6482,4459.0,4458.9,0.231]
[1756917888540,0.6482,4459.0,4458.8,3.2078]